bitfinex-derivatives/quotes_BTCF0:USTF0_20250903
["timestamp","ask_amount","ask_price","bid_price","bid_amount"]
[1756892895075,0.84908681,111260.0,111250.0,1.34807042]
[1756892895281,0.84908681,111260.0,111250.0,1.34707042]
[1756892895788,0.84908681,111260.0,111250.0,1.34807042]
[1756892897281,0.84908681,111260.0,111250.0,1.34907042]
[1756892897477,0.84905726,111260.0,111250.0,1.34907042]
[1756892897882,0.82692,111260.0,111250.0,1.34907042]
[1756892898381,0.0001,111270.0,111250.0,1.80042111]
[1756892898582,0.0001,111270.0,111260.0,1.11131293]
[1756892898787,0.00052,111280.0,111270.0,0.04587]
[1756892899081,0.00042,111280.0,111270.0,1.10781799]
[1756892899283,0.00042,111280.0,111270.0,1.35781799]
[1756892899485,0.00042,111280.0,111270.0,1.7881624]
[1756892899679,0.00042,111280.0,111270.0,1.44768219]
[1756892900085,0.001,111280.0,111270.0,1.40181219]
[1756892900694,0.001,111280.0,111270.0,2.15002799]
[1756892901090,0.002,111280.0,111270.0,2.15002799]
[1756892901289,0.002,111280.0,111270.0,2.15046799]
[1756892901791,0.0001,111290.0,111270.0,2.15346799]
[1756892902094,0.0001,111290.0,111280.0,0.68096042]
[1756892902289,0.34058021,111300.0,111280.0,0.35]
[1756892902598,0.36251677,111300.0,111290.0,0.34048021]
[1756892902894,0.02193656,111300.0,111290.0,0.34048021]
[1756892903093,0.83374021,111310.0,111280.0,0.34058021]
[1756892903295,1.19566979,111310.0,111280.0,0.71258021]
[1756892903496,1.19566979,111310.0,111290.0,0.34048021]
[1756892903794,1.19566979,111310.0,111290.0,0.34058021]
[1756892903982,0.34048021,111300.0,111290.0,0.34058021]
[1756892904181,0.36240979,111300.0,111280.0,0.0021]
[1756892904382,0.36250979,111300.0,111290.0,0.34048021]
[1756892904582,0.02192958,111300.0,111290.0,0.34048021]
[1756892904991,0.8395,111310.0,111290.0,0.69148021]
[1756892905194,0.8395,111310.0,111300.0,0.34048021]
[1756892905195,1.48190486,111310.0,111300.0,0.34048021]
[1756892905388,1.48180486,111310.0,111300.0,0.34048021]
[1756892905589,1.48180486,111310.0,111290.0,0.0011]
[1756892905791,1.48190486,111310.0,111300.0,0.34048021]
[1756892905991,1.48180486,111310.0,111290.0,0.34258021]
[1756892906293,0.34080021,111300.0,111290.0,0.79511021]
[1756892906494,0.00042,111300.0,111290.0,0.79501021]
[1756892906698,1.18008021,111310.0,111290.0,0.79501021]
[1756892906998,1.50231917,111310.0,111300.0,0.097]
[1756892907292,1.50221917,111310.0,111300.0,0.097]
[1756892907695,1.16173896,111310.0,111300.0,0.097]
[1756892907899,1.50221917,111310.0,111300.0,0.097]
[1756892908197,1.50321917,111310.0,111300.0,0.097]
[1756892908593,1.16273896,111310.0,111300.0,0.097]
[1756892908793,1.50321917,111310.0,111300.0,0.43748021]
[1756892908987,1.50221917,111310.0,111300.0,0.43748021]
[1756892909795,1.16173896,111310.0,111300.0,0.43748021]
[1756892909989,1.50221917,111310.0,111300.0,0.43748021]
[1756892910404,1.50321917,111310.0,111300.0,0.43748021]
[1756892910592,1.50421917,111310.0,111300.0,0.43748021]
[1756892911300,1.50321917,111310.0,111300.0,0.43748021]
[1756892911797,1.50321917,111310.0,111300.0,0.097]
[1756892912100,1.75321917,111310.0,111300.0,0.03708]
[1756892912296,1.75221917,111310.0,111300.0,0.097]
[1756892912593,1.41173896,111310.0,111300.0,0.097]
[1756892912796,1.75221917,111310.0,111300.0,0.097]
[1756892912991,1.75321917,111310.0,111300.0,0.43748021]
[1756892913296,1.75321917,111310.0,111300.0,0.097]
[1756892913799,1.75421917,111310.0,111300.0,0.097]
[1756892915500,1.75421917,111310.0,111300.0,0.06034]
[1756892915701,1.75421917,111310.0,111300.0,0.097]
[1756892916102,1.41373896,111310.0,111300.0,0.097]
[1756892916303,1.75421917,111310.0,111300.0,0.097]
[1756892916710,1.41373896,111310.0,111300.0,0.097]
[1756892917005,1.75421917,111310.0,111300.0,0.06034]
[1756892918911,0.00042,111300.0,111290.0,0.0001]
[1756892919100,0.00042,111290.0,111280.0,0.08076]
[1756892919300,1.20553917,111290.0,111280.0,0.08066]
[1756892919804,0.02191896,111290.0,111280.0,0.76114021]
[1756892919999,0.0001,111300.0,111290.0,0.08066]
[1756892920195,0.0011,111310.0,111290.0,1.14162042]
[1756892920401,0.8432,111300.0,111290.0,0.48144367]
[1756892920599,0.0219518,111300.0,111290.0,0.48134367]
[1756892920802,0.8433,111310.0,111290.0,0.44672367]
[1756892921001,1.1133,111310.0,111300.0,0.09451]
[1756892921204,1.1132,111310.0,111300.0,0.09451]
[1756892921403,1.1132,111310.0,111300.0,0.77547042]
[1756892921603,1.1132,111310.0,111300.0,1.11547042]
[1756892921998,1.13516152,111310.0,111300.0,0.43499021]
[1756892922194,0.93516152,111310.0,111300.0,0.74499021]
[1756892922399,0.93516152,111310.0,111300.0,0.77547042]
[1756892922595,0.93558152,111310.0,111300.0,0.09451]
[1756892922897,0.93556152,111310.0,111300.0,1.05547042]
[1756892923102,0.93556152,111310.0,111300.0,0.43499021]
[1756892923304,0.93556152,111310.0,111300.0,0.77547042]
[1756892924798,0.93598152,111310.0,111300.0,0.77547042]
[1756892925004,1.32478021,111310.0,111300.0,0.43499021]
[1756892925399,1.25478021,111310.0,111300.0,0.43499021]
[1756892925804,1.26478021,111310.0,111300.0,0.43499021]
[1756892926306,1.25478021,111310.0,111300.0,0.43499021]
[1756892927202,0.9143,111310.0,111300.0,0.43499021]
[1756892927396,1.20646173,111310.0,111300.0,0.09451]
[1756892927600,0.86598152,111310.0,111300.0,0.43499021]
[1756892927902,1.20646173,111310.0,111300.0,0.09451]
[1756892928106,1.20646173,111310.0,111300.0,0.43499021]
[1756892928309,0.93040617,111310.0,111300.0,0.09451]
[1756892928607,1.27088638,111310.0,111300.0,0.43499021]
[1756892928802,0.93040617,111310.0,111300.0,0.43499021]
[1756892929005,1.27088638,111310.0,111300.0,0.43499021]
[1756892931313,0.93040617,111310.0,111300.0,0.77547042]
[1756892931504,0.93040617,111310.0,111300.0,0.43499021]
[1756892931809,0.93040617,111310.0,111300.0,0.77547042]
[1756892932212,0.93045671,111310.0,111300.0,0.43499021]
[1756892932711,0.93045671,111310.0,111300.0,0.09451]
[1756892932907,0.93045671,111310.0,111300.0,0.43499021]
[1756892933506,0.86603206,111310.0,111300.0,0.43499021]
[1756892933707,0.86603206,111310.0,111300.0,0.09451]
[1756892933908,0.86603206,111310.0,111300.0,0.77547042]
[1756892935013,0.91452337,111310.0,111300.0,1.15547042]
[1756892935612,0.07092337,111310.0,111300.0,1.15547042]
[1756892935807,0.91156337,111310.0,111300.0,1.15547042]
[1756892936007,0.91160337,111310.0,111300.0,1.15547042]
[1756892936216,0.86311206,111310.0,111300.0,1.15547042]
[1756892936411,0.86311206,111310.0,111300.0,0.09451]
[1756892936910,0.91160337,111310.0,111300.0,0.43499021]
[1756892937111,0.91160337,111310.0,111300.0,0.77547042]
[1756892937313,0.86311206,111310.0,111300.0,0.77547042]
[1756892937715,0.86331206,111310.0,111300.0,0.77547042]
[1756892939316,1.20379227,111310.0,111300.0,0.77547042]
[1756892939515,0.86331206,111310.0,111300.0,0.77547042]
[1756892940412,0.86331206,111310.0,111300.0,0.09451]
[1756892940612,1.20379227,111310.0,111300.0,0.43499021]
[1756892940806,0.86331206,111310.0,111300.0,0.77547042]
[1756892941312,0.86255206,111310.0,111300.0,0.77547042]
[1756892942916,0.02243206,111310.0,111300.0,0.77547042]
[1756892943127,0.86315206,111310.0,111300.0,0.77547042]
[1756892943324,0.86315206,111310.0,111300.0,0.09451]
[1756892943624,0.86315206,111310.0,111300.0,0.43499021]
[1756892944126,1.20363227,111310.0,111300.0,0.77547042]
[1756892944617,0.86315206,111310.0,111300.0,0.77547042]
[1756892945013,1.20363227,111310.0,111300.0,0.43499021]
[1756892945726,1.20363227,111310.0,111300.0,0.09451]
[1756892946026,0.00042,111300.0,111290.0,0.04783]
[1756892946219,0.34090021,111300.0,111290.0,0.38821021]
[1756892946416,0.36291227,111300.0,111290.0,0.42283021]
[1756892947030,0.86291206,111300.0,111290.0,0.75283021]
[1756892947228,0.02243206,111300.0,111290.0,0.75283021]
[1756892947528,0.86291206,111300.0,111290.0,0.75283021]
[1756892948437,0.86291206,111300.0,111290.0,0.41235]
[1756892948738,0.86291206,111300.0,111290.0,0.75283021]
[1756892948944,0.02243206,111300.0,111290.0,0.75283021]
[1756892949234,0.86283206,111300.0,111290.0,0.75283021]
[1756892949736,0.86283206,111300.0,111290.0,0.42283021]
[1756892950838,1.20331227,111300.0,111290.0,0.42283021]
[1756892953139,1.20331227,111300.0,111290.0,0.79283021]
[1756892955441,0.86283206,111300.0,111290.0,0.90598569]
[1756892958140,0.86283206,111300.0,111290.0,0.45235]
[1756892958845,1.56646775,111300.0,111290.0,0.12]
[1756892959042,1.85445569,111300.0,111280.0,0.0001]
[1756892959236,0.45405569,111290.0,111280.0,0.2401]
[1756892959540,0.47606765,111290.0,111280.0,0.28758]
[1756892961042,0.48512346,111290.0,111280.0,0.28758]
[1756892961731,0.47606765,111290.0,111280.0,0.28758]
[1756892961932,0.47606765,111290.0,111280.0,0.32396]
[1756892963540,0.47606765,111290.0,111280.0,0.28758]
[1756892963940,0.47606765,111290.0,111280.0,0.26278]
[1756892964338,0.47606765,111290.0,111280.0,0.32396]
[1756892964539,1.31322765,111290.0,111280.0,0.32396]
[1756892964943,1.3222661,111290.0,111280.0,0.32396]
[1756892965444,1.3222661,111290.0,111280.0,0.28758]
[1756892966041,0.85947196,111290.0,111280.0,0.32396]
[1756892966242,1.31310765,111290.0,111280.0,0.32396]
[1756892966447,1.31310765,111290.0,111280.0,0.28758]
[1756892967346,1.31310765,111290.0,111280.0,0.32396]
[1756892967548,1.31310765,111290.0,111280.0,0.28758]
[1756892967748,1.31310765,111290.0,111280.0,0.26278]
[1756892968852,1.31310765,111290.0,111280.0,0.24]
[1756892969351,1.56310765,111290.0,111280.0,0.24]
[1756892969555,1.56310765,111290.0,111270.0,0.03648]
[1756892969751,0.45373569,111280.0,111270.0,0.30648]
[1756892969951,0.47606765,111280.0,111270.0,0.35396]
[1756892970555,0.02243196,111280.0,111270.0,0.35396]
[1756892970752,0.47606765,111280.0,111270.0,0.35396]
[1756892971242,0.47706765,111280.0,111270.0,0.35396]
[1756892972648,0.47806765,111280.0,111270.0,0.35396]
[1756892972845,0.47706765,111280.0,111270.0,0.35396]
[1756892973040,0.54729067,111280.0,111270.0,0.31758]
[1756892973446,0.54729067,111280.0,111270.0,0.27]
[1756892973447,1.16729067,111280.0,111270.0,0.27]
[1756892973652,1.62092636,111280.0,111260.0,0.0001]
[1756892973956,1.29663569,111270.0,111260.0,0.02288]
[1756892974148,1.66864765,111270.0,111260.0,0.02278]
[1756892974650,1.66864765,111270.0,111250.0,0.05095]
[1756892974651,1.66864765,111270.0,111250.0,0.09853]
[1756892974953,0.45363569,111260.0,111250.0,0.47843]
[1756892975155,0.47564765,111260.0,111250.0,0.47843]
[1756892975550,1.31844765,111260.0,111250.0,0.47843]
[1756892976057,1.31844765,111260.0,111250.0,0.19305]
[1756892976252,1.31844765,111260.0,111250.0,0.22943]
[1756892976854,1.31844765,111260.0,111250.0,0.23043]
[1756892978743,1.31844765,111260.0,111250.0,0.19405]
[1756892978950,1.31844765,111260.0,111250.0,0.22871]
[1756892984258,1.31844765,111260.0,111250.0,0.19405]
[1756892984459,1.31844765,111260.0,111250.0,0.06405]
[1756892985461,1.33844765,111260.0,111250.0,0.06405]
[1756892986562,1.33844765,111260.0,111250.0,0.09871]
[1756892987165,0.47564765,111260.0,111250.0,0.09871]
[1756892987458,1.31584765,111260.0,111250.0,0.09871]
[1756892987665,0.47564765,111260.0,111250.0,0.09871]
[1756892987857,1.31568765,111260.0,111250.0,0.09871]
[1756892988965,0.47564765,111260.0,111250.0,0.09871]
[1756892989166,1.31528765,111260.0,111250.0,0.09871]
[1756892989667,0.86157196,111260.0,111250.0,0.09871]
[1756892989862,0.02201196,111260.0,111250.0,0.09871]
[1756892990055,0.86153196,111260.0,111250.0,0.09871]
[1756892990261,0.02201196,111260.0,111250.0,0.09871]
[1756892990565,0.86161196,111260.0,111250.0,0.09871]
[1756892991460,0.86133196,111260.0,111250.0,1.14234569]
[1756892991969,0.86133196,111260.0,111250.0,0.68871]
[1756892994770,0.02201196,111260.0,111250.0,1.14234569]
[1756892994969,0.51557196,111260.0,111250.0,1.14234569]
[1756892997370,0.02201196,111260.0,111250.0,1.14234569]
[1756892999164,0.02201196,111260.0,111250.0,0.89234569]
[1756893000271,0.02201196,111260.0,111250.0,0.43871]
[1756893000472,0.02201196,111260.0,111250.0,0.89234569]
[1756893004180,0.83906,111270.0,111250.0,0.85768569]
[1756893004375,0.86105184,111270.0,111260.0,0.53571569]
[1756893004676,0.86095184,111270.0,111260.0,0.86571569]
[1756893004978,0.02199184,111270.0,111260.0,0.86571569]
[1756893006878,0.02199184,111270.0,111260.0,0.41208]
[1756893007174,1.03375871,111280.0,111260.0,0.86671569]
[1756893007374,1.0557393,111280.0,111270.0,0.08208]
[1756893007573,1.0556393,111280.0,111270.0,0.08208]
[1756893008579,0.60200361,111280.0,111270.0,0.08208]
[1756893009374,1.0556393,111280.0,111270.0,0.08208]
[1756893010676,0.5458393,111280.0,111270.0,0.08208]
[1756893010873,1.3833593,111280.0,111270.0,0.08208]
[1756893011173,1.6333593,111280.0,111260.0,0.08365]
[1756893011379,0.45363569,111270.0,111260.0,0.04645]
[1756893011580,0.47561628,111270.0,111260.0,0.02314]
[1756893011779,0.47561628,111270.0,111250.0,0.09746]
[1756893011981,1.29111569,111260.0,111250.0,0.09736]
[1756893012278,1.31309628,111260.0,111250.0,0.09736]
[1756893012479,0.85946059,111260.0,111250.0,0.09736]
[1756893012981,0.85946059,111260.0,111250.0,0.09836]
[1756893013376,1.31309628,111260.0,111250.0,0.09836]
[1756893013576,0.85906059,111260.0,111250.0,0.89199569]
[1756893013778,0.02198059,111260.0,111250.0,0.89099569]
[1756893013979,0.02198059,111260.0,111250.0,0.89199569]
[1756893014179,0.02198059,111260.0,111250.0,0.89299569]
[1756893015583,0.02198059,111260.0,111250.0,0.7797844]
[1756893015983,0.36240499,111260.0,111250.0,0.7797844]
[1756893016189,1.19948499,111260.0,111250.0,0.7797844]
[1756893017485,0.85906059,111260.0,111250.0,0.7797844]
[1756893019885,1.19948499,111260.0,111250.0,0.7797844]
[1756893020387,1.19948499,111260.0,111250.0,0.4397844]
[1756893020596,1.19948499,111260.0,111250.0,0.7897844]
[1756893021285,1.19948499,111260.0,111250.0,0.4397844]
[1756893021480,1.19948499,111260.0,111250.0,0.4025844]
[1756893021683,1.19948499,111260.0,111250.0,0.4397844]
[1756893021988,1.19951214,111260.0,111250.0,0.4397844]
[1756893022389,1.53993654,111260.0,111250.0,0.09936]
[1756893022585,1.53993654,111260.0,111250.0,0.06216]
[1756893023581,1.78993654,111260.0,111250.0,0.01647]
[1756893023886,1.78993654,111260.0,111250.0,0.002]
[1756893024286,1.78993654,111260.0,111250.0,0.03887]
[1756893024482,1.78994235,111260.0,111250.0,0.03887]
[1756893024792,1.78994235,111260.0,111250.0,0.01573]
[1756893025288,1.78994235,111260.0,111250.0,0.4390444]
[1756893025289,0.27201355,111260.0,111250.0,0.4390444]
[1756893025492,1.44907795,111260.0,111250.0,0.4390444]
[1756893025681,1.44907795,111260.0,111250.0,0.09862]
[1756893026083,1.78950235,111260.0,111250.0,0.06142]
[1756893026693,1.10865355,111260.0,111250.0,0.09862]
[1756893026894,1.78950235,111260.0,111250.0,0.09862]
[1756893028794,1.78950235,111260.0,111250.0,0.06142]
[1756893028995,1.78950235,111260.0,111250.0,0.09862]
[1756893030695,1.78950235,111260.0,111250.0,0.06142]
[1756893032084,1.19839795,111260.0,111250.0,0.4390444]
[1756893032490,1.19839795,111260.0,111250.0,0.09862]
[1756893032689,1.19839795,111260.0,111250.0,0.4390444]
[1756893032889,0.85797355,111260.0,111250.0,0.4390444]
[1756893033089,1.19839795,111260.0,111250.0,0.4390444]
[1756893035099,0.85797355,111260.0,111250.0,0.4390444]
[1756893035398,1.19839795,111260.0,111250.0,0.4390444]
[1756893037098,1.53882235,111260.0,111250.0,0.4390444]
[1756893037300,1.53882235,111260.0,111250.0,0.09862]
[1756893037485,1.53882235,111260.0,111250.0,0.4390444]
[1756893038497,1.53882235,111260.0,111250.0,0.09862]
[1756893038699,1.53882235,111260.0,111250.0,0.4018444]
[1756893038887,1.53882235,111260.0,111250.0,0.06142]
[1756893044195,2.49924675,111260.0,111250.0,0.002]
[1756893044795,2.15882235,111260.0,111250.0,0.002]
[1756893045302,2.49924675,111260.0,111250.0,0.002]
[1756893045899,2.54773806,111260.0,111250.0,0.002]
[1756893046403,2.49924675,111260.0,111250.0,0.002]
[1756893048703,2.14924675,111260.0,111250.0,0.002]
[1756893048902,2.46924675,111260.0,111250.0,0.002]
[1756893050207,1.12797355,111260.0,111250.0,0.002]
[1756893050402,2.47924675,111260.0,111250.0,0.002]
[1756893053907,2.14924675,111260.0,111250.0,0.002]
[1756893054104,2.44924675,111260.0,111250.0,0.002]
[1756893055103,2.49773806,111260.0,111250.0,0.002]
[1756893059414,2.24773806,111260.0,111250.0,0.002]
[1756893059715,2.25773806,111260.0,111250.0,0.002]
[1756893061615,1.92773806,111260.0,111250.0,0.002]
[1756893061801,1.96453806,111260.0,111250.0,0.06321]
[1756893062007,1.62403366,111260.0,111250.0,0.09808]
[1756893062809,1.62403366,111260.0,111250.0,0.06321]
[1756893064313,1.96445806,111260.0,111250.0,0.04047]
[1756893064513,1.96445806,111260.0,111250.0,0.01628]
[1756893065014,1.96445806,111260.0,111250.0,0.04047]
[1756893065718,1.96445806,111260.0,111250.0,0.06321]
[1756893066109,0.79135366,111260.0,111250.0,0.09808]
[1756893066308,1.62411366,111260.0,111250.0,0.09808]
[1756893066812,0.79135366,111260.0,111250.0,0.09808]
[1756893067014,1.62375366,111260.0,111250.0,0.09808]
[1756893067713,1.57526235,111260.0,111250.0,0.09808]
[1756893068803,1.57526235,111260.0,111250.0,0.06321]
[1756893069007,2.19568675,111260.0,111250.0,0.002]
[1756893069415,2.19568675,111260.0,111250.0,0.03988]
[1756893069616,2.19568675,111260.0,111250.0,0.06262]
[1756893069812,1.04328675,111260.0,111250.0,0.09772]
[1756893070016,1.55526235,111260.0,111250.0,0.09772]
[1756893072116,0.04201355,111260.0,111250.0,0.09772]
[1756893072320,1.55522235,111260.0,111250.0,0.09772]
[1756893073117,1.53498235,111260.0,111250.0,0.09772]
[1756893075620,1.30823614,111260.0,111250.0,0.09772]
[1756893083421,1.62823614,111260.0,111250.0,0.06262]
[1756893083619,1.32823614,111260.0,111250.0,0.06262]
[1756893083812,1.32823614,111260.0,111250.0,0.01568]
[1756893084120,1.32823614,111260.0,111250.0,0.06381]
[1756893084418,1.32823614,111260.0,111250.0,0.09891]
[1756893085014,1.32823614,111260.0,111250.0,0.06381]
[1756893086522,1.63823614,111260.0,111250.0,0.002]
[1756893086908,1.30823614,111260.0,111250.0,0.002]
[1756893087115,1.67823614,111260.0,111250.0,0.002]
[1756893087622,1.32823614,111260.0,111250.0,0.002]
[1756893087920,1.66823614,111260.0,111250.0,0.06381]
[1756893088319,1.66823614,111260.0,111250.0,0.03988]
[1756893089016,1.30823614,111260.0,111250.0,0.03988]
[1756893089223,1.68823614,111260.0,111250.0,0.03988]
[1756893091922,1.68823614,111260.0,111250.0,0.002]
[1756893092925,1.30823614,111260.0,111250.0,0.002]
[1756893093128,1.65823614,111260.0,111250.0,0.002]
[1756893093427,1.65825387,111260.0,111250.0,0.002]
[1756893094029,1.32825387,111260.0,111250.0,0.002]
[1756893094229,1.64825387,111260.0,111250.0,0.002]
[1756893094621,1.64789387,111260.0,111250.0,0.06381]
[1756893094821,1.64789387,111260.0,111250.0,0.01568]
[1756893095029,1.64789387,111260.0,111250.0,0.03988]
[1756893095230,1.64789387,111260.0,111250.0,0.06381]
[1756893097134,1.64789387,111260.0,111250.0,0.01568]
[1756893099934,1.64789387,111260.0,111250.0,0.002]
[1756893100123,1.89789387,111260.0,111250.0,0.002]
[1756893100433,1.94638518,111260.0,111250.0,0.002]
[1756893101635,1.11462518,111260.0,111250.0,0.002]
[1756893101932,1.94634518,111260.0,111250.0,0.002]
[1756893102634,3.84598518,111260.0,111250.0,0.002]
[1756893102935,3.79749387,111260.0,111250.0,0.002]
[1756893105034,3.84598518,111260.0,111250.0,0.002]
[1756893105339,3.52598518,111260.0,111250.0,0.002]
[1756893105528,3.59598518,111260.0,111250.0,0.002]
[1756893105840,4.06602111,111260.0,111250.0,0.002]
[1756893106036,4.41244788,111260.0,111220.0,0.08454]
[1756893106229,0.45410259,111230.0,111220.0,0.20454]
[1756893106429,1.30781387,111230.0,111220.0,0.20454]
[1756893106736,0.47613387,111230.0,111220.0,0.20454]
[1756893106931,1.30781387,111230.0,111220.0,0.20454]
[1756893107240,1.30785387,111230.0,111220.0,0.20754]
[1756893107538,1.31708609,111230.0,111220.0,0.21254]
[1756893108144,1.31708609,111230.0,111220.0,0.09254]
[1756893109642,0.48536609,111230.0,111220.0,0.09254]
[1756893109848,1.30785387,111230.0,111220.0,0.09254]
[1756893110247,0.85375128,111230.0,111220.0,0.09254]
[1756893110546,1.30785387,111230.0,111220.0,0.09254]
[1756893111149,1.31669934,111230.0,111220.0,0.09254]
[1756893111338,1.30785387,111230.0,111220.0,0.09254]
[1756893111533,0.47613387,111230.0,111220.0,0.09254]
[1756893112141,1.30785387,111230.0,111220.0,0.09254]
[1756893114946,0.47613387,111230.0,111220.0,0.34254]
[1756893115150,1.29297387,111230.0,111220.0,0.34254]
[1756893115345,0.83172,111230.0,111220.0,1.12664259]
[1756893115544,0.0001,111240.0,111230.0,0.08454]
[1756893115745,0.45420259,111250.0,111230.0,0.39781]
[1756893115945,0.83168,111240.0,111230.0,0.43454]
[1756893117149,0.83168,111240.0,111230.0,0.43654]
[1756893118058,0.83168,111240.0,111230.0,0.43954]
[1756893118455,1.28578259,111240.0,111230.0,0.43954]
[1756893119156,1.28578259,111240.0,111230.0,0.08954]
[1756893119652,0.83168,111240.0,111230.0,0.08954]
[1756893119857,1.28578259,111240.0,111230.0,0.08954]
[1756893121162,0.0001,111250.0,111240.0,0.08454]
[1756893121458,2.37587926,111260.0,111250.0,0.09855]
[1756893121649,3.207419,111260.0,111250.0,0.09855]
[1756893121849,1.307779,111260.0,111250.0,0.09855]
[1756893122555,0.83164,111260.0,111250.0,0.09855]
[1756893122860,0.83164,111260.0,111250.0,0.34855]
[1756893123063,0.83164,111260.0,111250.0,1.18155281]
[1756893123255,0.83164,111260.0,111250.0,1.17265259]
[1756893123451,0.83164,111260.0,111250.0,0.71855]
[1756893123755,0.8316,111260.0,111250.0,0.68282]
[1756893124458,0.8316,111260.0,111250.0,0.71955]
[1756893124856,0.45420259,111270.0,111260.0,0.03673]
[1756893125153,1.36772077,111270.0,111260.0,0.08454]
[1756893125659,0.91361818,111270.0,111260.0,0.08454]
[1756893125860,1.36772077,111270.0,111260.0,0.08454]
[1756893126860,1.36872077,111270.0,111260.0,0.08454]
[1756893127256,1.36972077,111270.0,111260.0,0.08454]
[1756893128958,0.53812077,111270.0,111260.0,0.37454]
[1756893129165,1.30956077,111270.0,111260.0,0.42454]
[1756893129359,0.47812077,111270.0,111260.0,0.08454]
[1756893129662,1.30956077,111270.0,111260.0,0.08454]
[1756893130862,0.85545818,111270.0,111260.0,0.08454]
[1756893131864,0.85445818,111270.0,111260.0,0.08454]
[1756893132160,1.30856077,111270.0,111260.0,0.08454]
[1756893133255,1.28654259,111270.0,111260.0,0.08454]
[1756893133558,1.28654259,111270.0,111260.0,0.04781]
[1756893133754,1.28654259,111270.0,111260.0,0.08215]
[1756893134459,0.07032302,111280.0,111260.0,0.39215]
[1756893134656,0.82196,111270.0,111260.0,0.35891]
[1756893134864,0.07032302,111280.0,111270.0,0.08275]
[1756893135163,1.35568561,111280.0,111270.0,0.04841]
[1756893135366,1.35568561,111280.0,111270.0,0.08275]
[1756893137461,1.58234962,111280.0,111270.0,0.08275]
[1756893137764,1.58334962,111280.0,111270.0,0.08275]
[1756893138567,1.58234962,111280.0,111270.0,0.08375]
[1756893138867,1.91234962,111280.0,111270.0,0.08375]
[1756893141270,1.93430139,111280.0,111270.0,0.08375]
[1756893141871,1.91234962,111280.0,111270.0,0.4241333]
[1756893142173,1.1717433,111280.0,111270.0,0.6741333]
[1756893142564,1.1715433,111280.0,111270.0,0.6741333]
[1756893143574,0.83116,111280.0,111270.0,0.6741333]
[1756893145272,0.85313017,111280.0,111270.0,0.6741333]
[1756893145471,0.83116,111280.0,111270.0,0.6741333]
[1756893146175,0.85312905,111280.0,111270.0,0.6741333]
[1756893146367,1.19351235,111280.0,111270.0,0.33375]
[1756893146568,1.19351235,111280.0,111270.0,0.6741333]
[1756893146975,1.19343235,111280.0,111270.0,0.6741333]
[1756893147676,1.19343235,111280.0,111270.0,0.33375]
[1756893147872,1.19343235,111280.0,111270.0,0.6741333]
[1756893148072,0.85304905,111280.0,111270.0,0.6741333]
[1756893148373,1.19343235,111280.0,111270.0,0.33375]
[1756893148674,1.19343235,111280.0,111270.0,0.6741333]
[1756893148975,1.19343235,111280.0,111270.0,0.08375]
[1756893149171,1.19343235,111280.0,111270.0,0.4241333]
[1756893156077,1.19343235,111280.0,111270.0,0.08375]
[1756893156275,1.19343235,111280.0,111270.0,0.4241333]
[1756893157583,1.19343235,111280.0,111270.0,0.08375]
[1756893157782,1.19343235,111280.0,111270.0,0.4241333]
[1756893159076,1.24197608,111280.0,111270.0,0.08375]
[1756893159382,1.24197608,111280.0,111270.0,0.4241333]
[1756893162679,1.24197608,111280.0,111270.0,0.08375]
[1756893162885,1.24197608,111280.0,111270.0,0.4241333]
[1756893165083,1.19343235,111280.0,111270.0,0.4241333]
[1756893166581,0.02196905,111280.0,111270.0,0.7641333]
[1756893166786,1.19303235,111280.0,111270.0,0.7641333]
[1756893167284,0.85264905,111280.0,111270.0,0.7641333]
[1756893167589,1.19303235,111280.0,111270.0,0.7641333]
[1756893170393,1.19303235,111280.0,111270.0,0.42375]
[1756893170594,1.19303235,111280.0,111270.0,0.7641333]
[1756893170789,1.19303235,111280.0,111270.0,0.08375]
[1756893171195,1.19303235,111280.0,111270.0,0.7541333]
[1756893175200,1.19303235,111280.0,111270.0,0.08375]
[1756893175400,1.19303235,111280.0,111270.0,0.7541333]
[1756893176903,1.19303235,111280.0,111270.0,0.08375]
[1756893177094,1.19303235,111280.0,111270.0,0.8041333]
[1756893179502,0.85264905,111280.0,111270.0,0.8041333]
[1756893181105,1.19303235,111280.0,111270.0,0.8041333]
[1756893183103,0.85264905,111280.0,111270.0,0.8041333]
[1756893183506,1.19303235,111280.0,111270.0,0.8041333]
[1756893183804,1.19303235,111280.0,111270.0,0.7441333]
[1756893185006,0.85264905,111280.0,111270.0,0.7441333]
[1756893185404,0.02196905,111280.0,111270.0,0.7441333]
[1756893185602,0.02196905,111280.0,111270.0,2.2546174]
[1756893185796,0.0001,111290.0,111280.0,0.08218]
[1756893185993,0.3549,111300.0,111280.0,1.15414745]
[1756893186192,0.37694239,111300.0,111290.0,0.4225633]
[1756893186498,0.37684239,111300.0,111290.0,0.7825633]
[1756893187207,0.37784239,111300.0,111290.0,0.7825633]
[1756893187805,0.38084239,111300.0,111290.0,0.7825633]
[1756893189206,0.38084239,111300.0,111290.0,0.44218]
[1756893189406,0.37884239,111300.0,111290.0,0.7825633]
[1756893189714,0.37684239,111300.0,111290.0,0.7825633]
[1756893190006,0.37684239,111300.0,111290.0,0.7835633]
[1756893190406,0.37684239,111300.0,111290.0,0.79266739]
[1756893191304,0.37684239,111300.0,111290.0,0.45228409]
[1756893191502,0.37684239,111300.0,111290.0,0.79266739]
[1756893191702,0.0001,111310.0,111290.0,1.13305069]
[1756893192010,0.85213817,111310.0,111300.0,0.7760966]
[1756893192208,0.85203817,111310.0,111300.0,1.1560966]
[1756893192408,0.85203817,111310.0,111300.0,0.8157133]
[1756893193511,1.19242147,111310.0,111300.0,0.8157133]
[1756893193909,1.19342147,111310.0,111300.0,0.8157133]
[1756893194109,0.85303817,111310.0,111300.0,0.8157133]
[1756893194410,0.85403817,111310.0,111300.0,0.8157133]
[1756893194911,1.19442147,111310.0,111300.0,0.8157133]
[1756893197413,0.85403817,111310.0,111300.0,0.92886931]
[1756893200108,0.02399817,111310.0,111300.0,0.92886931]
[1756893200513,0.85375817,111310.0,111300.0,0.92886931]
[1756893200715,0.02399817,111310.0,111300.0,0.92886931]
[1756893200907,0.85375817,111310.0,111300.0,0.92886931]
[1756893201109,0.85375817,111310.0,111300.0,0.47533]
[1756893201613,0.85375817,111310.0,111300.0,0.09533]
[1756893203409,0.02399817,111310.0,111300.0,0.92886931]
[1756893203713,0.02399817,111310.0,111300.0,1.17886931]
[1756893205210,0.002,111310.0,111300.0,1.17886931]
[1756893208414,0.002,111310.0,111300.0,1.19962396]